Cogmind - Beta 9.6 @@@ ROGUE MODE // 2020.07.05 @ 13:32:56 Player: Vectis Result: Destroyed by D-53 Grenadier with Mini Grenade Launcher Performance ------------- Evolutions (0) 0 Regions Visited (2) 400 Robots Destroyed (30) 150 Value Destroyed (678) 678 Prototype IDs (3) 60 Alien Tech Used (0) 0 Bonus (0) 0 TOTAL SCORE: 1288 Bonus ------- None Cogmind --------- Core Integrity 0/250 Matter 289/300 Energy 100/100 System Corruption 2% Temperature Cool (0) Movement Rolling (90) Ox1 Location -10/Mines Parts ------- > --- POWER (1) -------- (None) > --- PROPULSION (2) --- Wheel Wheel > --- UTILITY (2) ------ Large Storage Unit Large Storage Unit > --- WEAPON (2) ------- Light Cannon Light Cannon > --- INVENTORY (16) --- Ion Engine Light Nuclear Core Light Treads Light Treads Compact Wheel Improved Heat Sink Large Storage Unit High-capacity Matter Pod (200) Core Shielding Propulsion Shielding Hacking Suite Medium Laser Beam Cannon Assault Rifle Assault Rifle Assault Rifle Peak State ------------ > --- POWER ------------ Ion Engine > --- PROPULSION ------- Wheel Wheel > --- UTILITY ---------- Large Storage Unit Large Storage Unit > --- WEAPON ----------- Assault Rifle Assault Rifle > --- INVENTORY -------- Ion Engine Light Ion Engine Light Nuclear Core Light Treads Aluminum Leg Aluminum Leg Aluminum Leg Compact Wheel Improved Heat Sink Medium Storage Unit Large Storage Unit Propulsion Shielding Medium Laser Beam Cannon Assault Rifle Light Assault Rifle [Rating: 9] Favorites ----------- Power Light Ion Engine Engine Light Ion Engine Propulsion Wheel Treads Light Treads Wheel Wheel Utility Large Storage Unit Storage Large Storage Unit Weapon Light Cannon Ballistic Gun Assault Rifle Ballistic Cannon Light Cannon Build | -11 -10 -10 ------- Run | Scr Mat Min Slots Evolved . | . . . Power . | . . . Propulsion . | . . . Utility . | . . . Weapon . | . . . Parts Attached 28 | 7 15 6 Power 3 | 1 2 . Engine 3 | 1 2 . Core . | . . . Reactor . | . . . Propulsion 6 | 2 2 2 Treads 2 | 2 . . Leg . | . . . Wheel 4 | . 2 2 Hover . | . . . Flight . | . . . Utility 5 | 2 3 . Device . | . . . Storage 5 | 2 3 . Processor . | . . . Hackware . | . . . Protection . | . . . Artifact . | . . . Weapon 14 | 2 8 4 Energy Gun . | . . . Energy Cannon . | . . . Ballistic Gun 9 | 2 5 2 Ballistic Cannon 5 | . 3 2 Launcher . | . . . Special Weapon . | . . . Impact Weapon . | . . . Slashing Weapon . | . . . Piercing Weapon . | . . . Special Melee Weapon . | . . . Unidentified Prototypes . | . . . Parts Lost 7 | . 6 1 Power 2 | . 1 1 Propulsion 2 | . 2 . Utility . | . . . Weapon 3 | . 3 . Highest Loss Streak 5 | . 5 1 Average Slot Usage (%) 98 | . 98 100 Engine 13 | . 13 14 Treads 7 | . 10 . Wheel 19 | . 17 28 Storage 28 | . 28 28 Ballistic Gun 12 | . 16 2 Ballistic Cannon 14 | . 11 25 Naked Turns . | . . . Heaviest Build 43 | 14 43 41 Greatest Support 40 | 40 40 20 Greatest Overweight (x) 2 | . 2 2 Average Overweight (x) 1 | . 1 1 Largest Inventory Capacity 16 | 8 16 16 Average Capacity 15 | 5 15 16 Most Carried 16 | 4 16 16 Average Carried 12 | 1 13 15 Final Capacity 16 | 8 16 16 Final Carried 16 | 4 15 16 Class Distribution -------------------- 100% | Mutant Dominant Class ---------------- Mutant | -10/Materials Mutant | -10/Mines Resources | -11 -10 -10 ----------- Run | Scr Mat Min Matter Collected 937 | 274 555 108 Remotely . | . . . Salvage Created 1127 | 81 904 142 Parts 66 | 4 56 6 Haulers Intercepted 2 | . 2 . Recyclers Shooed 1 | . 1 . Parts Field Recycled . | . . . Retrieved Matter . | . . . Parts Self-Destructed . | . . . Prevented . | . . . Kills | -11 -10 -10 ------- Run | Scr Mat Min Combat Hostiles Destroyed 19 | . 19 . Guns 19 | . 19 . Classes Destroyed 8 | 1 5 2 Worker 2 | . 1 1 Builder 1 | . . 1 Tunneler 1 | . . 1 Hauler 2 | . 2 . Recycler 3 | 1 1 1 Operator 2 | . 2 . Swarmer 3 | . 3 . Grunt 16 | . 16 . Best Kill Streak 3 | 1 3 3 Combat Bots Only 3 | . 3 . Max Kills in Single Turn 1 | 1 1 1 Gunslinging . | . . . Exploded . | . . . Melee . | . . . Uniques/NPCs Destroyed . | . . . Combat | -11 -10 -10 -------- Run | Scr Mat Min Damage Taken 1235 | . 1094 141 Core 253 | . 179 74 Absorbed by Shields . | . . . Core Remaining (%) 100 | 100 . . Volleys Fired 106 | 1 87 18 Largest 2 | 2 2 2 Hottest 70 | 40 70 70 Shots Fired 195 | 2 173 20 Gun 183 | 2 165 16 Cannon 12 | . 8 4 Launcher . | . . . Special . | . . . Kinetic 195 | 2 173 20 Thermal . | . . . Explosive . | . . . Electromagnetic . | . . . Robot Hit Streak 21 | 1 21 8 Robot Miss Streak 4 | . 4 1 Penetration Max . | . . . Secondary Targets . | . . . Shots Hit Robots 138 | 1 121 16 Core Hits 54 | 1 47 6 Critical Hits 2 | . 2 . Critical Kills . | . . . Critical Parts Destroyed 2 | . 2 . Melee Attacks . | . . . Impact . | . . . Slashing . | . . . Piercing . | . . . Sneak Attacks . | . . . Combat Hostiles . | . . . Follow-up Attacks . | . . . Damage Inflicted 1603 | 15 1341 247 Guns 1497 | 15 1287 195 Cannons 106 | . 54 52 Explosions . | . . . Melee . | . . . Ramming . | . . . Kinetic 1603 | 15 1341 247 Thermal . | . . . Explosive . | . . . Electromagnetic . | . . . Impact . | . . . Slashing . | . . . Piercing . | . . . Highest Corruption 2 | . 2 2 Average Corruption 2 | . 2 2 Corruption Purged . | . . . Effects 33 | . 28 5 Message Errors 11 | . 7 4 Heat Flow Errors 3 | . 3 . Energy Discharges 5 | . 4 1 Data Loss (minor) 8 | . 8 . Targeting Errors 6 | . 6 . Overload Shots . | . . . Overflow Damage . | . . . Projectiles . | . . . Explosions . | . . . Melee . | . . . Knockbacks 1 | . . 1 Impact . | . . . Kinetic 1 | . . 1 Secondary . | . . . Self-Inflicted Damage . | . . . Shots . | . . . Rammed . | . . . Targets Rammed . | . . . Kicked . | . . . Crushed . | . . . Highest Temperature 250 | . 250 3 Average Temperature 63 | . 64 2 Received Heat Transfer 501 | . 501 . Siege Activations . | . . . Robots Corrupted . | . . . Combat Hostiles . | . . . Parts Fried . | . . . Impact Corruptions . | . . . Robots Melted . | . . . Combat Hostiles . | . . . Parts Melted . | . . . Heat Transferred . | . . . Parts Sabotaged . | . . . Parts Stolen . | . . . Parts Stripped . | . . . Power Chain Reactions . | . . . Missiles Intercepted . | . . . Alert | -11 -10 -10 ------- Run | Scr Mat Min Peak Influence 367 | 5 367 35 Average Influence 47 | 1 64 6 Maximum Alert Level 1 | . 1 . Low Security (%) 91 | 100 87 100 Level 1 8 | . 12 . Level 2 . | . . . Level 3 . | . . . Level 4 . | . . . Level 5 . | . . . High Security . | . . . Max Security . | . . . Squads Dispatched 7 | . 7 . Investigation 5 | . 5 . Extermination . | . . . Reinforcement 2 | . 2 . Assault . | . . . Garrison . | . . . Intercept . | . . . Construction Impeded . | . . . Haulers Reinforced . | . . . Stealth | -11 -10 -10 --------- Run | Scr Mat Min Distress Signals 5 | . 5 . Communications Jammed . | . . . Distress Signals . | . . . Times Spotted 44 | . 43 1 Peak Tracking Total 6 | . 6 1 Tactical Retreats 4 | . 4 . Traps | -11 -10 -10 ------- Run | Scr Mat Min Traps Triggered 4 | . 4 . Indirectly . | . . . Trap Hack Attempts . | . . . Triggered . | . . . Disarmed . | . . . Reprogrammed . | . . . Reused . | . . . Traps Extracted . | . . . Installed . | . . . Triggered . | . . . Machines | -11 -10 -10 ---------- Run | Scr Mat Min Machines Disabled 1 | . 1 . Max in Single Turn 1 | . 1 . Machines Sabotaged . | . . . Garrisons Compromised . | . . . Overloaded Fab Kills . | . . . Fab Network Shutdowns . | . . . Hacking | -11 -10 -10 --------- Run | Scr Mat Min Machines Accessed 10 | . 9 1 Terminals 7 | . 6 1 Fabricators . | . . . Repair Stations 1 | . 1 . Recycling Units 2 | . 2 . Scanalyzers . | . . . Garrison Access . | . . . Total Hacks 34 | . 32 2 Successful 20 | . 19 1 Failed 14 | . 13 1 Catastrophic 2 | . 2 . Database Lockouts . | . . . Manual 25 | . 23 2 Terminals 24 | . 22 2 Fabricators . | . . . Repair Stations 5 | . 5 . Recycling Units 5 | . 5 . Scanalyzers . | . . . Garrison Access . | . . . Terminal Hacks 7 | . 7 . Robot Analysis 3 | . 3 . Prototype ID Bank 2 | . 2 . Unreport Threat 2 | . 2 . Fabricator Hacks . | . . . Repair Station Hacks 4 | . 4 . Scan Component 2 | . 2 . Repair 2 | . 2 . Recycling Unit Hacks 2 | . 2 . Retrieve Matter 2 | . 2 . Scanalyzer . | . . . Garrison Access Hacks . | . . . Unauthorized Hacks 7 | . 6 1 Terminals 5 | . 4 1 Track 1 | . . 1 Botnet 1 | . 1 . Disrupt 3 | . 3 . Fabricators . | . . . Repair Stations . | . . . Recycling Units 2 | . 2 . Tunnel 2 | . 2 . Scanalyzers . | . . . Garrison Access . | . . . Data Cores Recovered . | . . . Used . | . . . Hacking Detections 8 | . 7 1 Full Trace Events 1 | . 1 . Feedback Events . | . . . Feedback Blocked . | . . . Robot Schematics Acquired . | . . . Robots Built . | . . . Matter . | . . . Time . | . . . Total Robot Build Rating . | . . . Part Schematics Acquired . | . . . Parts Built . | . . . Matter . | . . . Time . | . . . Total Part Build Rating . | . . . Parts Repaired 2 | . 2 . Time 52 | . 52 . Parts Recycled . | . . . Recycled Matter . | . . . Retrieved Matter . | . . . Retrieved Components . | . . . Parts Scanalyzed . | . . . Part Schematics Acquired . | . . . Parts Damaged . | . . . Bothacking | -11 -10 -10 ------------ Run | Scr Mat Min Used RIF Installer . | . . . Robots Hacked . | . . . Non-combat . | . . . Combat . | . . . Robot Hacks Applied . | . . . Relay Couplers Released . | . . . Robots Rewired . | . . . Allies Hacked . | . . . Hacks Repelled . | . . . Allies | -11 -10 -10 -------- Run | Scr Mat Min Total Allies . | . . . Largest Group . | . . . Highest-Rated Group . | . . . Highest-Rated Ally . | . . . Total Orders . | . . . Ally Attacks . | . . . Total Damage . | . . . Kills . | . . . Allies Corrupted . | . . . Allies Melted . | . . . Intel | -11 -10 -10 ------- Run | Scr Mat Min Robot Analysis Total 3 | . 3 . Derelict Logs Recovered 1 | . . 1 Drone Launches . | . . . Drone Recoveries . | . . . Exploration | -11 -10 -10 ------------- Run | Scr Mat Min Turns Passed 2585 | 136 1842 607 Spaces Moved 1041 | 76 681 284 Core 3 | 3 . . Treads 381 | 73 308 . Legs . | . . . Wheels 657 | . 373 284 Hover . | . . . Flight . | . . . Fastest Speed 50 | 50 90 90 Average Speed 120 | 155 126 97 Slowest Speed 160 | 160 160 100 Overloaded Moves . | . . . Propulsion Burnouts . | . . . Robots Hopped . | . . . Cave-ins Triggered . | . . . Exploration Rate (%) 43 | 5 91 33 Regions Visited 2 Branch Regions 1 Pre-discovered Areas 2 | . 2 . Known Exits Taken . | . . . Unknown Exits Taken 2 | 1 1 . Scrap Searched 1 | . . 1 Spaces Dug . | . . . Terrain Destroyed . | . . . Melee . | . . . Projectile . | . . . AOE . | . . . Actions | -11 -10 -10 --------- Run | Scr Mat Min Total 2183 | 89 1500 594 Wait 967 | 2 682 283 Move 1039 | 75 680 284 Hop . | . . . Pick Up 31 | 4 26 1 Fast Attach 9 | 7 2 . Attach 6 | . 6 . Detach . | . . . Swap 13 | . 7 6 Drop 12 | . 10 2 Fire 106 | 1 87 18 Melee . | . . . Ram . | . . . Kick . | . . . Crush . | . . . Escape Stasis . | . . . Rewire . | . . . Trap . | . . . Miscellaneous . | . . . Route ------- -11/Scrapyard -10/Materials (discovered 3 exits: [*Mat x2] / *Min) -10/Mines History --------- Turn | Location | Event 17 | -11/Scrapyard | Discovered new exit (range 15) 137 | -11/Scrapyard | Entered Materials 262 | -10/Materials | Discovered new exit (range 10) 310 | -10/Materials | Build established: Mutant 526 | -10/Materials | Discovered new exit (range 16) 852 | -10/Materials | Discovered new exit (range 15) 865 | -10/Materials | Lost 5 parts (1p2n2w) 881 | -10/Materials | Core integrity fell below 50% 965 | -10/Materials | Repaired Assault Rifle 992 | -10/Materials | Repaired Lrg. Storage Unit 1979 | -10/Materials | Entered Mines 2020 | -10/Mines | Learned Materials terminal intel 2030 | -10/Mines | Assembled infested the area 2035 | -10/Mines | Assisted by a Guerilla fighting off Assembled 2581 | -10/Mines | Core integrity fell below 20% 2586 | -10/Mines | Destroyed by D-53 Grenadier with Mini Grenade Launcher Last Messages --------------- 02466_ Acquired 22 matter. 02470_ X5TWGEWJOIAENS>NE8G5PSMD 02489_ Acquired 18 matter. 02518_ Acquired 3 matter. 02530_ U-05 Engineer destroyed. 02532_ Acquired 6 matter. 02536_ K-01 Serf collects debris. 02547_ K-01 Serf destroyed. 02551_ Dropped Wheel. 02553_ Acquired 14 matter. 02561_ Acquired 12 matter. 02566_ T-07 Excavator destroyed. 02568_ Acquired 13 matter. 02570_ Dropped Wheel. 02573_ Acquired 20 matter. 02580_ K-01 Serf destroyed. 02580_ T-07 Excavator destroyed. 02582_ The unstable cave ceiling collapses. 02582_ Lgt. Ion Engine destroyed. 02584_ D-53 Grenadier knocked back. Map ----- +----------------------------------------------------+ | ??????????????????????????????????? | | ??????????????????????????????????? | | ??????????????????????????????????? | | ??????????????????????????????????? | | ???????###################????????? | | ???????# #????????? | | ???????# #????????? | | ???????# #????????? | | ???????# """ """ """ """ #????????? | | ???????# """ """ """ """ #????????? | | ???????# """ """ """ """ #????????? | | ???????# #????????? | | ???????############# ####????????? | | ???????????????????# #???????????? | | ???????????????????# #???????????? | | ???????????????????# ####### """"? | | ????????????????#### | | ????????????????# #?? | | ????????????????# ######### ### #?? | | ????????????????# #???????????????? | | ???????????###??# #???????????????? | | ????####### ##?# #???????????????? | | ???## ### #???????????????? | | ???# ## #???????????????? | | ???# ## #???????????????? | | ???# @ d #???????????????? | | ????# #####???????????????? | | ????## | #???????????????????? | | ?????## #???????????????????? | | ??????#=!## ###???????????????????? | | ??????# %######################???? | | ??##### = * #???? | | ??# ##### ######## #####[#???? | | ??# #### #??## ##?????# #???#!#???? | | ??# #??# #?## ##???## #???#%##### | | ??# #??# ### ##?## ##??#][ # | | ??# #??# ### ##?##### # | | ?## ####### %| #?????# # | | ?# #?# #?????# # | | ?# """ #### ##??### # | | ?# """ T#?## ##?# | | ?# """ ##?# ### ! | | ?# #??# ## ! | | ?# #??# ### ## !!! | | ?# #### #?## # !!! | | ?# #??# | | ?# #######??## # | | ?########?????????########## ## | | ???????????????????????????######## | | ??????????????????????????????????? | +----------------------------------------------------+ Best States ------------- Heat Dissipation 25 Energy Generation 10 Energy Capacity 250 Matter Stores 300 Matter Capacity 300 Sight Range 16 Terrain Scan Density 10 Evasion (%) 42 Recoil Reduction 2 Item Schematics ----------------- None Robot Schematics ------------------ None Fabricated ------------ Nothing Alien Tech Used ----------------- None Achievements -------------- None Challenges ------------ None Game ------ Seed BackupSupersonicAutogun Manual? 0 Play Time 00:12:17 Cumulative 161.3 hours Start 2020.07.05 @ 13:19:32 End 2020.07.05 @ 13:32:56 Sessions 1 Manual Loads 0 Difficulty Rogue Special Mode None Game No. 81 Rogue 81 Adventurer 0 Explorer 0 Win Type - Total 7 Types 6/0/0/1/0/0/0 Lore% 75 Gallery% 69 Achievement% 60 Wizard Run 0 Options --------- ASCII 1 Keyboard 0 Movement Numpad Keybinds 0 Fullscreen 1 Font 18/Cog Map View 76x50 Tactical HUD 1 Map Filters NONE Filters NONE Steam 1 RUN: 39145ef9-be82-4560-9d71-b961bc4779ce